bitfinex-derivatives/quotes_BTCF0:USTF0_20251215
["timestamp","ask_amount","ask_price","bid_price","bid_amount"]
[1765765910127,0.71638,89646.0,89645.0,0.6234513]
[1765765910328,0.001,89646.0,89645.0,0.6234513]
[1765765912530,0.36096729,89654.0,89653.0,0.6103532]
[1765765913630,0.36096729,89654.0,89653.0,0.6123532]
[1765765913823,0.00016729,89654.0,89653.0,0.6123532]
[1765765914334,0.68208,89667.0,89663.0,0.6103519]
[1765765914628,0.67466,89664.0,89663.0,0.6103519]
[1765765914930,0.3608,89664.0,89663.0,0.6103519]
[1765765915722,0.3618,89664.0,89663.0,0.6113519]
[1765765916130,0.001,89664.0,89663.0,0.6113519]
[1765765917618,0.36096729,89672.0,89671.0,0.5955809]
[1765765917619,0.92938729,89672.0,89671.0,0.5955809]
[1765765917824,0.93499382,89672.0,89671.0,0.5955809]
[1765765918829,0.36296729,89672.0,89671.0,0.5965809]
[1765765919825,0.00316729,89672.0,89671.0,0.5965809]
[1765765920523,0.13149541,89681.0,89680.0,0.7816998]
[1765765920733,0.3608,89683.0,89682.0,0.58443]
[1765765921231,0.9403694,89683.0,89682.0,0.58443]
[1765765921432,0.56842,89673.0,89672.0,0.77055]
[1765765921640,0.56842,89667.0,89666.0,0.58443]
[1765765922625,0.56842,89667.0,89666.0,0.5955816]
[1765765922828,0.28559,89667.0,89666.0,0.5965816]
[1765765923028,0.001,89667.0,89666.0,0.5965816]
[1765765923328,0.3618,89683.0,89680.0,0.7816998]
[1765765923625,0.3608,89683.0,89680.0,0.7816998]
[1765765924425,0.3608,89683.0,89666.0,0.3608]
[1765765924426,0.56842,89667.0,89666.0,0.58443]
[1765765924627,0.56842,89667.0,89666.0,0.28095]
[1765765925034,0.56842,89665.0,89664.0,0.77071729]
[1765765925522,0.98926843,89669.0,89668.0,0.58443]
[1765765925727,0.92922,89669.0,89668.0,0.58443]
[1765765927340,0.92922,89669.0,89668.0,0.5955813]
[1765765927831,0.92922,89669.0,89668.0,0.5965813]
[1765765928039,1.6297,89669.0,89668.0,0.5965813]
[1765765928823,1.34587,89669.0,89668.0,0.5965813]
[1765765929641,1.34587,89669.0,89668.0,0.58543]
[1765765931927,0.70048,89669.0,89668.0,0.58543]
[1765765932338,0.76053177,89669.0,89668.0,0.58543]
[1765765932533,0.70048,89669.0,89668.0,0.58543]
[1765765933345,0.06005177,89670.0,89669.0,0.5955812]
[1765765933539,0.29017633,89674.0,89673.0,0.5955807]
[1765765935039,0.42085819,89675.0,89674.0,0.58443]
[1765765935240,0.3608,89675.0,89674.0,0.58443]
[1765765935442,0.06005819,89675.0,89674.0,0.58443]
[1765765935644,0.08000178,89677.0,89676.0,0.58443]
[1765765935847,0.08000178,89678.0,89677.0,0.5955802]
[1765765936142,0.56842,89678.0,89677.0,0.5955802]
[1765765936940,1.14478,89680.0,89679.0,0.58443]
[1765765937335,0.57636,89680.0,89679.0,0.58443]
[1765765937535,1.14478,89680.0,89679.0,0.58443]
[1765765938045,1.14578,89680.0,89679.0,0.58443]
[1765765938242,0.57736,89680.0,89679.0,0.58543]
[1765765938445,0.001,89680.0,89679.0,0.58543]
[1765765938638,0.08109233,89680.0,89679.0,0.58543]
[1765765939237,0.001,89680.0,89679.0,0.58543]
[1765765939437,0.00016729,89681.0,89679.0,0.58543]
[1765765939438,0.00016729,89681.0,89680.0,0.7816998]
[1765765939638,0.28475729,89681.0,89680.0,0.7816998]
[1765765939841,0.00016729,89681.0,89680.0,0.7816998]
[1765765940434,0.00016729,89681.0,89680.0,0.7826998]
[1765765940959,0.28475729,89681.0,89680.0,0.7816998]
[1765765941149,0.00016729,89681.0,89680.0,0.7836998]
[1765765941741,0.3608,89683.0,89682.0,0.58443]
[1765765941948,0.08011364,89689.0,89687.0,0.58443]
[1765765942147,0.44091364,89691.0,89690.0,0.58443]
[1765765942345,0.3608,89691.0,89690.0,0.58443]
[1765765942949,0.44092068,89691.0,89690.0,0.58443]
[1765765943151,0.3608,89691.0,89690.0,0.58443]
[1765765943456,0.3608,89691.0,89652.0,0.58443]
[1765765943457,0.28383,89653.0,89652.0,0.58443]
[1765765943745,0.85225,89653.0,89652.0,0.5955833]
[1765765943934,0.92922,89653.0,89652.0,0.5955833]
[1765765944339,0.64539,89653.0,89652.0,0.5955833]
[1765765944745,0.3608,89653.0,89652.0,0.5955833]
[1765765944948,0.44092654,89653.0,89652.0,0.5955833]
[1765765945542,0.44192654,89653.0,89652.0,0.6085833]
[1765765945743,0.64639,89653.0,89652.0,0.6085833]
[1765765945947,0.3618,89653.0,89652.0,0.6085833]
[1765765946155,0.3628,89653.0,89652.0,0.6165833]
[1765765946344,0.3628,89653.0,89652.0,0.6105833]
[1765765947343,0.00016729,89661.0,89652.0,0.6105833]
[1765765947344,9e-08,89661.0,89660.0,0.6280823]
[1765765947545,0.06008952,89680.0,89679.0,0.61693]
[1765765947752,0.06008952,89680.0,89672.0,0.1472]
[1765765947753,0.98047,89682.0,89681.0,0.61693]
[1765765949154,0.66547,89682.0,89681.0,0.61693]
[1765765949344,0.98047,89682.0,89681.0,0.61693]
[1765765949540,0.72552729,89682.0,89681.0,0.61693]
[1765765949746,0.42285729,89682.0,89681.0,0.61693]
[1765765949942,0.42385729,89682.0,89681.0,0.61693]
[1765765950239,0.003,89682.0,89681.0,0.61693]
[1765765950649,0.00016729,89690.0,89689.0,0.6449887]
[1765765950838,0.00016729,89690.0,89689.0,1.0057887]
[1765765952142,0.65783,89682.0,89681.0,0.002]
[1765765952342,0.3618,89682.0,89681.0,0.63384]
[1765765952940,0.3608,89682.0,89681.0,0.63384]
[1765765953655,0.3608,89682.0,89681.0,0.63584]
[1765765953957,0.3608,89682.0,89681.0,0.63684]
[1765765954842,1.01863,89682.0,89681.0,0.003]
[1765765955042,1.01863,89682.0,89681.0,0.32122]
[1765765955247,1.01963,89682.0,89681.0,0.63784]
[1765765955448,0.3618,89682.0,89681.0,0.63784]
[1765765955752,0.36096729,89690.0,89689.0,0.6449887]
[1765765957158,0.36096729,89690.0,89689.0,0.6469887]
[1765765958360,0.36096729,89690.0,89689.0,0.6449887]
[1765765958549,0.36196729,89690.0,89689.0,0.6489887]
[1765765959260,0.36196729,89690.0,89689.0,0.6479887]
[1765765959461,0.36196729,89690.0,89689.0,0.6489887]
[1765765959866,0.68417729,89690.0,89689.0,0.6489887]
[1765765961050,0.36196729,89690.0,89689.0,0.6489887]
[1765765961258,0.00116729,89690.0,89689.0,0.6489887]
[1765765962061,0.65899729,89690.0,89689.0,0.004]
[1765765963046,0.65783,89674.0,89670.0,0.011151]
[1765765963251,1.01863,89674.0,89670.0,0.011151]
[1765765963462,1.01863,89674.0,89665.0,0.3608]
[1765765963463,1.07864395,89674.0,89665.0,0.3719516]
[1765765963753,0.65783,89666.0,89665.0,0.3719516]
[1765765963954,0.65783,89666.0,89665.0,0.3313716]
[1765765964161,0.65783,89666.0,89665.0,0.6449916]
[1765765964865,0.65783,89666.0,89665.0,0.0111516]
[1765765965050,0.65783,89666.0,89665.0,0.6449916]
[1765765965254,0.65883,89666.0,89665.0,0.6469916]
[1765765965660,0.65883,89666.0,89665.0,0.6479916]
[1765765965857,0.001,89666.0,89665.0,0.6479916]
[1765765966164,0.71784591,89672.0,89671.0,0.6449909]
[1765765966355,0.06001591,89672.0,89671.0,0.6449909]
[1765765966555,0.06001591,89673.0,89672.0,0.63384]
[1765765966963,0.3608,89674.0,89673.0,0.6449907]
[1765765968257,0.06001591,89677.0,89676.0,0.63384]
[1765765968457,0.06001591,89678.0,89677.0,0.6449902]
[1765765968654,1.2539403,89690.0,89677.0,0.6449902]
[1765765968655,0.06001591,89679.0,89677.0,0.0111502]
[1765765968851,0.06001591,89680.0,89679.0,0.6449899]
[1765765969159,0.06001591,89683.0,89682.0,0.63384]
[1765765969967,0.06001591,89684.0,89683.0,0.6449894]
[1765765970759,0.71784591,89684.0,89683.0,0.6449894]
[1765765970973,0.65783,89683.0,89682.0,0.002]
[1765765972259,0.65783,89680.0,89679.0,0.3313699]
[1765765972461,1.01863,89680.0,89679.0,0.3313699]
[1765765973167,1.07864607,89680.0,89679.0,0.6449899]
[1765765973869,1.07864607,89680.0,89679.0,0.6459899]
[1765765974171,1.01863,89680.0,89679.0,0.6459899]
[1765765974355,1.01863,89680.0,89679.0,0.6449899]
[1765765974559,1.01863,89680.0,89679.0,0.6459899]
[1765765974966,1.01863,89680.0,89679.0,0.6449899]
[1765765975268,1.01863,89680.0,89679.0,0.6459899]
[1765765976566,1.01863,89680.0,89679.0,0.6449899]
[1765765976763,0.3608,89680.0,89679.0,0.6459899]
[1765765977163,0.3608,89680.0,89679.0,0.6449899]
[1765765977372,0.3608,89680.0,89679.0,0.6459899]
[1765765977763,0.69389,89680.0,89679.0,0.6449899]
[1765765978070,0.69489,89680.0,89679.0,0.6459899]
[1765765978474,0.69489,89680.0,89679.0,0.6469899]
[1765765978769,1.00114,89680.0,89679.0,0.6479899]
[1765765981176,0.64034,89680.0,89679.0,0.6479899]
[1765765981863,0.83967,89680.0,89679.0,0.003]
[1765765982059,1.20047,89680.0,89679.0,0.003]
[1765765985474,1.20602084,89680.0,89679.0,0.003]
[1765765985769,1.20602084,89680.0,89679.0,2.9e-06]
[1765765985964,0.8245,89672.0,89671.0,0.00016729]
[1765765986161,1.70038,89672.0,89671.0,0.63857729]
[1765765986366,1.89971,89672.0,89671.0,0.32915729]
[1765765986665,1.70038,89672.0,89671.0,0.63857729]
[1765765987373,1.70138,89672.0,89671.0,0.64157729]
[1765765987573,1.70138,89672.0,89671.0,0.64357729]
[1765765987874,1.70038,89672.0,89671.0,0.64157729]
[1765765988273,1.8982,89672.0,89671.0,0.00116729]
[1765765991463,1.8982,89672.0,89671.0,0.33015729]
[1765765991678,0.3608,89672.0,89671.0,0.65072819]
[1765765991873,0.80052231,89681.0,89680.0,0.8452098]
[1765765992171,0.70028,89681.0,89680.0,0.8452098]
[1765765992479,0.78048313,89681.0,89680.0,0.8452098]
[1765765992771,1.11357313,89681.0,89680.0,0.8452098]
[1765765992976,1.11557313,89681.0,89680.0,0.8462098]
[1765765993371,1.03537,89681.0,89680.0,0.8462098]
[1765765993565,0.002,89681.0,89680.0,0.8462098]
[1765765993766,0.004,89681.0,89680.0,0.8462098]
[1765765994276,0.003,89681.0,89680.0,0.8462098]
[1765765994480,0.001,89681.0,89680.0,0.8472098]
[1765765995180,0.64034,89681.0,89680.0,0.6505598]
[1765765995388,0.33409,89681.0,89680.0,0.6525598]
[1765765995680,0.64034,89681.0,89680.0,0.6535598]
[1765765996166,0.63934,89681.0,89680.0,0.6535598]
[1765765996370,0.64034,89681.0,89680.0,0.6535598]
[1765765996773,0.63934,89681.0,89680.0,0.6515598]
[1765765997072,0.64034,89681.0,89680.0,0.6525598]
[1765765997778,0.70047903,89681.0,89680.0,0.6525598]
[1765765997970,0.70047903,89681.0,89680.0,0.6515598]
[1765765998174,0.70047903,89681.0,89680.0,0.6525598]
[1765765999175,0.70047903,89681.0,89680.0,0.6515598]
[1765765999375,1.00114,89681.0,89680.0,0.002]
[1765766000772,1.70134,89681.0,89680.0,0.33099]
[1765766001371,1.70134,89681.0,89680.0,0.002]
[1765766002375,0.63934,89653.0,89652.0,0.6495632]
[1765766003679,0.64034,89653.0,89652.0,0.6635632]
[1765766004777,0.64234,89653.0,89652.0,0.6675633]
[1765766004976,0.003,89653.0,89652.0,0.6675633]
[1765766005284,0.00016729,89661.0,89660.0,0.63841]
[1765766006470,0.65580729,89661.0,89660.0,0.64041]
[1765766006670,0.33425729,89661.0,89660.0,0.64041]
[1765766006884,0.00116729,89661.0,89660.0,0.64141]
[1765766007282,0.30480729,89661.0,89660.0,0.64141]
[1765766007580,0.61538729,89661.0,89660.0,0.64141]
[1765766007979,0.61538729,89661.0,89660.0,0.33199]
[1765766008182,0.61538729,89661.0,89660.0,0.003]
[1765766009379,0.61538729,89661.0,89660.0,0.60689]
[1765766014293,0.61538729,89661.0,89660.0,0.6180423]
[1765766017791,0.00116729,89661.0,89660.0,0.6180423]
[1765766017988,0.29909729,89661.0,89660.0,0.6180423]
[1765766018292,0.60967729,89661.0,89660.0,0.30261]
[1765766019291,0.60967729,89661.0,89660.0,0.60689]
[1765766020993,0.70148729,89661.0,89660.0,0.60689]
[1765766021296,0.99941729,89661.0,89660.0,0.60689]
[1765766021900,1.30999729,89661.0,89660.0,0.60689]
[1765766022094,0.60967729,89661.0,89660.0,0.60689]
[1765766022401,1.30999729,89661.0,89660.0,0.60689]
[1765766022983,0.60967729,89661.0,89660.0,0.60689]
[1765766023188,1.30999729,89661.0,89660.0,0.60689]
[1765766025188,0.00116729,89661.0,89660.0,0.60689]
[1765766025791,0.06124771,89661.0,89660.0,0.60689]
[1765766026084,0.00116729,89661.0,89660.0,0.60689]
[1765766027187,0.60967729,89661.0,89660.0,0.60689]
[1765766029097,0.00116729,89661.0,89660.0,0.60689]
[1765766032302,0.08136159,89661.0,89660.0,0.60689]
[1765766034001,0.37929159,89661.0,89660.0,0.60689]
[1765766034201,0.68987159,89661.0,89660.0,0.60689]
[1765766034502,0.60967729,89661.0,89660.0,0.60689]
[1765766034999,0.29909729,89661.0,89660.0,0.60689]
[1765766035401,0.00116729,89661.0,89660.0,0.60689]
[1765766036302,0.0801943,89676.0,89675.0,0.6150404]
[1765766036598,0.60757,89676.0,89675.0,0.0111504]
[1765766036800,0.60757,89676.0,89675.0,0.3239404]
[1765766036999,0.1979003,89677.0,89671.0,0.0111509]
[1765766037204,0.61306,89672.0,89671.0,0.0111509]
[1765766037393,0.61306,89672.0,89671.0,0.6176409]
[1765766037587,0.002,89676.0,89675.0,0.6186404]
[1765766037899,0.61506,89676.0,89675.0,0.6186404]
[1765766038098,0.61406,89676.0,89675.0,0.6186404]
[1765766038300,0.61306,89676.0,89675.0,0.6176404]
[1765766038901,0.61406,89676.0,89675.0,0.6186404]
[1765766039802,0.61406,89676.0,89675.0,0.6196404]
[1765766048695,0.001,89676.0,89675.0,0.6196404]
[1765766048900,0.00016729,89683.0,89682.0,0.75015]
[1765766050113,0.00116729,89683.0,89682.0,0.75015]
[1765766050715,0.00116729,89683.0,89682.0,0.75115]
[1765766051712,0.00216729,89683.0,89682.0,0.75315]
[1765766052314,0.00116729,89683.0,89682.0,0.75415]
[1765766054213,0.00016729,89683.0,89682.0,0.75115]
[1765766054411,0.00116729,89683.0,89682.0,0.75415]
[1765766054612,0.00116729,89683.0,89682.0,1.11495]
[1765766055315,0.00116729,89683.0,89682.0,1.11395]
[1765766056215,0.00116729,89683.0,89682.0,1.11295]
[1765766056216,0.58505729,89683.0,89682.0,1.11295]
[1765766056511,0.29640729,89683.0,89682.0,1.11395]
[1765766056719,0.29640729,89683.0,89682.0,1.11195]
[1765766056916,0.29640729,89683.0,89682.0,1.11495]
[1765766057113,0.29640729,89683.0,89682.0,1.11395]
[1765766057314,0.29640729,89683.0,89682.0,1.11295]
[1765766057513,0.29640729,89683.0,89682.0,1.11595]
[1765766058015,0.29540729,89683.0,89682.0,1.11595]
[1765766058218,0.00116729,89683.0,89682.0,1.11595]
[1765766059016,0.58505729,89683.0,89682.0,1.11495]
[1765766059513,0.29540729,89683.0,89682.0,1.11195]
[1765766059707,0.29640729,89683.0,89682.0,1.11395]
[1765766059909,0.29640729,89683.0,89682.0,1.11595]
[1765766060105,0.29640729,89683.0,89682.0,1.11295]
[1765766060412,0.00116729,89683.0,89682.0,1.11595]
[1765766061413,0.58505729,89683.0,89682.0,1.11595]
[1765766061613,0.00116729,89683.0,89682.0,1.05134]
[1765766061814,0.00116729,89683.0,89682.0,1.05334]
[1765766062818,0.00016729,89683.0,89682.0,1.05034]
[1765766063018,0.49220302,89692.0,89682.0,0.48267]
[1765766063219,0.49220302,89692.0,89691.0,0.5818184]
[1765766063220,0.33567124,89692.0,89691.0,0.5818184]
[1765766063418,0.4409943,89699.0,89698.0,0.5818176]
[1765766063419,0.3608,89699.0,89698.0,0.5818176]
[1765766064212,0.58405729,89707.0,89706.0,0.7595666]
[1765766064619,0.58389,89717.0,89716.0,0.0111453]
[1765766064815,1.08152544,89730.0,89729.0,0.57067]
[1765766065122,0.95012242,89730.0,89729.0,0.57067]
[1765766066023,0.92059321,89730.0,89729.0,0.57067]
[1765766066414,0.58389,89728.0,89727.0,1.5]
[1765766068017,0.5866346,89722.0,89721.0,0.00016719]
[1765766068325,1.6473546,89722.0,89721.0,0.00016719]
[1765766069120,1.6473546,89722.0,89721.0,1.50016719]
[1765766069512,1.6503546,89722.0,89721.0,1.50016719]
[1765766070124,1.6523546,89722.0,89721.0,1.50016719]
[1765766071131,1.6493546,89722.0,89721.0,1.50016719]
[1765766071428,1.6523546,89722.0,89721.0,1.50016719]
[1765766072224,1.6483546,89722.0,89721.0,1.50016719]
[1765766072527,1.6513546,89722.0,89721.0,1.50016719]
[1765766073227,1.6503546,89722.0,89721.0,1.50016719]
[1765766073431,1.6513546,89722.0,89721.0,1.50016719]
[1765766073830,1.6503546,89722.0,89721.0,1.50016719]
[1765766074131,1.6513546,89722.0,89721.0,1.50016719]
[1765766075030,1.6483546,89722.0,89721.0,1.50016719]
[1765766075226,1.6483546,89722.0,89705.0,0.82301]
[1765766075227,0.64668,89706.0,89705.0,0.82301]
[1765766075625,0.64668,89706.0,89705.0,2.14745]
[1765766075925,0.72662461,89706.0,89705.0,2.14745]
[1765766076130,0.64668,89706.0,89705.0,2.14745]
[1765766076637,0.64768,89706.0,89705.0,2.14945]
[1765766077932,0.64768,89706.0,89705.0,2.15045]
[1765766079331,0.3608,89710.0,89709.0,0.64745]
[1765766079636,0.13130698,89720.0,89713.0,0.64745]
[1765766079825,0.3608,89722.0,89721.0,0.6585947]
[1765766081522,1.00748,89722.0,89721.0,0.6585947]
[1765766082026,1.00748,89722.0,89721.0,0.64745]
[1765766082226,1.01048,89722.0,89721.0,0.64745]
[1765766082724,1.01048,89722.0,89721.0,0.64945]
[1765766082923,1.00848,89722.0,89721.0,0.64945]
[1765766084330,1.00748,89722.0,89721.0,0.64745]
[1765766084634,1.00848,89722.0,89721.0,0.64845]
[1765766084933,1.00848,89722.0,89721.0,0.64745]
[1765766085134,1.00848,89722.0,89721.0,0.64845]
[1765766085528,1.00848,89722.0,89721.0,0.64745]
[1765766085836,0.657825,89719.0,89718.0,0.84875]
[1765766086731,0.64668,89713.0,89712.0,0.84875]
[1765766086926,0.70668316,89714.0,89713.0,0.64745]
[1765766087128,1.40636316,89714.0,89713.0,0.64745]
[1765766087329,1.34636,89714.0,89713.0,0.64745]
[1765766088436,1.34736,89714.0,89713.0,0.65045]
[1765766088937,1.34736,89714.0,89713.0,0.65145]
[1765766090336,0.001,89714.0,89713.0,0.65145]
[1765766090534,0.07994461,89727.0,89726.0,0.8598941]
[1765766090737,0.47728719,89730.0,89728.0,0.64745]
[1765766090924,0.00016719,89730.0,89728.0,0.64745]
[1765766091129,0.00016719,89730.0,89726.0,0.2124441]
[1765766091130,0.00016719,89730.0,89729.0,0.6585937]
[1765766092638,0.00116719,89730.0,89729.0,0.6585937]
[1765766093441,0.00316719,89730.0,89729.0,0.6585937]
[1765766093948,0.33966719,89730.0,89729.0,0.6585937]
[1765766094242,0.34066719,89730.0,89729.0,0.6625937]
[1765766094645,0.64784719,89730.0,89729.0,0.6625937]
[1765766094831,0.64784719,89730.0,89729.0,0.6635937]
[1765766095031,0.64684719,89730.0,89729.0,0.6595937]
[1765766095233,0.64784719,89730.0,89729.0,0.6625937]
[1765766096534,0.64784719,89730.0,89729.0,0.6615937]
[1765766097129,0.00116719,89730.0,89729.0,0.6615937]
[1765766097331,0.31085719,89730.0,89729.0,0.6615937]
[1765766097633,0.63111719,89730.0,89729.0,0.6615937]
[1765766097833,0.00116719,89730.0,89729.0,0.6615937]
[1765766099147,0.31085719,89730.0,89729.0,0.6615937]
[1765766100135,0.63011719,89730.0,89729.0,0.6615937]
[1765766100337,0.63111719,89730.0,89729.0,0.6615937]
[1765766100743,0.63011719,89730.0,89729.0,0.6585937]
[1765766100938,0.63111719,89730.0,89729.0,0.65045]
[1765766102943,0.63011719,89730.0,89729.0,0.64745]
[1765766103141,0.07994461,89741.0,89740.0,0.8457924]
[1765766103343,0.38963461,89750.0,89749.0,0.63693]
[1765766103640,0.30969,89750.0,89749.0,0.63693]
[1765766104345,0.3608,89752.0,89751.0,0.63693]
[1765766104944,0.99075,89752.0,89751.0,0.63693]
[1765766105144,0.62995,89750.0,89749.0,0.002]
[1765766105352,1.69027,89750.0,89749.0,0.002]
[1765766106241,0.62995,89742.0,89741.0,0.63709719]
[1765766106441,0.99075,89742.0,89741.0,0.63709719]
[1765766107752,0.99175,89742.0,89741.0,0.64109719]
[1765766107943,0.99175,89742.0,89741.0,0.64209719]
[1765766108248,1.69123,89742.0,89741.0,0.64209719]
[1765766109052,1.33043,89742.0,89741.0,0.64209719]
[1765766109650,1.69123,89742.0,89741.0,0.64209719]
[1765766110555,1.69119,89742.0,89741.0,0.64209719]
[1765766110752,0.67149,89742.0,89741.0,0.64209719]
[1765766110936,0.3618,89742.0,89741.0,0.64209719]
[1765766111140,0.99175,89742.0,89741.0,0.64209719]
[1765766113747,0.99175,89742.0,89741.0,0.31649719]
[1765766113953,0.99175,89742.0,89741.0,0.00516719]
[1765766114950,0.99175,89742.0,89741.0,0.64209719]
[1765766114951,0.67149,89742.0,89741.0,0.64209719]
[1765766116354,0.99175,89742.0,89741.0,0.64209719]
[1765766117559,1.69115,89742.0,89741.0,0.64209719]
[1765766118777,0.62995,89710.0,89709.0,0.3608]
[1765766118967,0.62995,89710.0,89690.0,0.99773]
[1765766118968,0.0111484,89691.0,89690.0,0.99773]
[1765766119269,0.0111484,89691.0,89690.0,2.13693]
[1765766119270,1.17395,89691.0,89690.0,2.13693]
[1765766119471,0.544,89691.0,89690.0,2.13693]
[1765766119666,0.3608,89699.0,89698.0,0.63693]
[1765766119867,1.06036719,89699.0,89698.0,0.63693]
[1765766120069,1.08373388,89699.0,89698.0,0.63693]
[1765766120472,0.02353388,89699.0,89698.0,0.6480776]
[1765766120661,0.001,89710.0,89709.0,0.63693]
[1765766122577,0.31069,89710.0,89709.0,0.63893]
[1765766123284,0.001,89710.0,89709.0,0.63893]
[1765766129582,0.001,89710.0,89709.0,0.99973]
[1765766133092,0.00016719,89718.0,89717.0,0.6208752]
[1765766133294,0.00016719,89718.0,89717.0,0.9816752]
[1765766133684,0.00016719,89718.0,89717.0,0.99307428]
[1765766134590,0.00016719,89718.0,89717.0,0.99407428]
[1765766135095,0.00116719,89718.0,89717.0,0.99407428]
[1765766135696,0.00216719,89718.0,89717.0,0.99807428]
[1765766135897,0.00116719,89718.0,89717.0,1.00007428]
[1765766136897,0.3608,89734.0,89733.0,0.7998632]
[1765766137794,0.96536,89734.0,89733.0,0.7998632]
[1765766138000,0.98919802,89734.0,89733.0,0.7998632]
[1765766138201,0.99019802,89734.0,89733.0,0.7998632]
[1765766138502,0.99019802,89734.0,89733.0,0.8018632]
[1765766138503,0.99119802,89734.0,89733.0,0.8018632]
[1765766138799,0.68807802,89734.0,89733.0,0.8018632]
[1765766139100,0.02583802,89734.0,89733.0,0.8018632]
[1765766140991,0.02483802,89734.0,89733.0,0.8028632]
[1765766141300,0.02483802,89734.0,89733.0,1.1636632]
[1765766142591,0.02383802,89734.0,89733.0,1.1616632]
[1765766142792,0.02483802,89734.0,89733.0,1.1656632]
[1765766143698,0.32627802,89734.0,89733.0,1.1656632]
[1765766144090,0.02483802,89734.0,89733.0,1.1646632]
[1765766144290,0.02483802,89734.0,89733.0,1.1656632]
[1765766148301,0.02484043,89734.0,89733.0,1.1656632]
[1765766153703,0.05996777,89740.0,89738.0,0.0111426]
[1765766154010,0.05996777,89741.0,89740.0,0.6208724]
[1765766154198,0.66452777,89741.0,89740.0,0.6208724]
[1765766154396,0.30144,89741.0,89740.0,0.6208724]
[1765766154700,0.00010932,89742.0,89741.0,0.60973]
[1765766155311,0.30154932,89742.0,89741.0,0.60973]
[1765766155510,0.00010932,89742.0,89741.0,0.60973]
[1765766155707,0.60466932,89742.0,89741.0,0.60973]
[1765766156910,0.30154932,89742.0,89741.0,0.60973]
[1765766157105,0.30254932,89742.0,89741.0,0.61373]
[1765766157410,0.00110932,89742.0,89741.0,0.61473]
[1765766157801,0.31801932,89742.0,89741.0,0.61473]
[1765766158300,0.31801932,89742.0,89741.0,0.61373]
[1765766158498,0.62639932,89742.0,89741.0,0.61073]
[1765766158713,0.62739932,89742.0,89741.0,0.61473]
[1765766159413,0.68744253,89742.0,89741.0,0.61473]
[1765766160114,0.68644253,89742.0,89741.0,0.60973]
[1765766160310,0.62739932,89742.0,89741.0,0.61473]
[1765766160510,0.31801932,89742.0,89741.0,0.61473]
[1765766160815,0.3780732,89742.0,89741.0,0.61473]
[1765766161215,0.31801932,89742.0,89741.0,0.61473]
[1765766161614,0.62739932,89742.0,89741.0,0.30512]
[1765766161813,0.76923932,89742.0,89741.0,0.005]
[1765766162014,1.13003932,89742.0,89741.0,0.005]
[1765766165215,0.98819932,89742.0,89741.0,0.005]
[1765766165617,1.01200262,89742.0,89741.0,0.005]
[1765766165816,1.01750005,89742.0,89741.0,0.005]
[1765766167626,1.15450005,89742.0,89741.0,5.182e-05]
[1765766168118,1.25464235,89742.0,89741.0,5.182e-05]
[1765766168319,1.15450005,89742.0,89741.0,5.182e-05]
[1765766170423,1.25464235,89742.0,89741.0,5.182e-05]
[1765766170827,1.15450005,89742.0,89741.0,5.182e-05]
[1765766171122,1.25464235,89742.0,89741.0,5.182e-05]
[1765766172230,1.15450005,89742.0,89741.0,5.182e-05]
[1765766172728,0.62629,89726.0,89725.0,0.61419719]
[1765766172923,0.6612374,89726.0,89725.0,0.00016719]
[1765766173522,0.7614988,89726.0,89725.0,0.00016719]
[1765766173721,0.7614988,89726.0,89725.0,0.30852719]
[1765766173918,0.7644988,89726.0,89725.0,0.32752719]
[1765766174233,0.6642374,89726.0,89725.0,0.63319719]
[1765766174420,0.6622374,89726.0,89725.0,0.62619719]
[1765766174621,0.6632374,89726.0,89725.0,0.62819719]
[1765766175427,0.6622374,89726.0,89725.0,0.61619719]
[1765766176534,0.66791631,89726.0,89725.0,0.61619719]
[1765766177630,0.66791631,89726.0,89725.0,0.00216719]
[1765766178030,0.66791631,89726.0,89725.0,0.61619719]
[1765766181932,0.66791631,89726.0,89725.0,0.80619719]
[1765766183024,0.6622374,89726.0,89725.0,0.80619719]
[1765766183219,0.6622374,89726.0,89725.0,0.59000091]
[1765766183624,0.6622374,89726.0,89725.0,0.30836]
[1765766184225,0.66782161,89726.0,89725.0,0.30836]
[1765766184935,0.66782161,89726.0,89725.0,0.61403]
[1765766185839,0.65667751,89726.0,89725.0,0.6251742]
[1765766186129,0.65667751,89726.0,89725.0,0.61403]
[1765766186435,0.66782161,89726.0,89725.0,0.61403]
[1765766186633,0.63183,89719.0,89718.0,0.6784451]
[1765766186832,1.3549933,89719.0,89718.0,0.6784451]
[1765766187131,0.6556333,89719.0,89718.0,0.6784451]
[1765766187333,1.3549933,89719.0,89718.0,0.6784451]
[1765766187834,1.3559933,89719.0,89718.0,0.6814451]
[1765766194238,1.3559933,89719.0,89718.0,0.6703]
[1765766195226,1.3671383,89719.0,89718.0,0.33363]
[1765766195426,1.3671383,89719.0,89718.0,0.003]
[1765766196634,1.3671383,89719.0,89718.0,0.002]
[1765766196936,1.3681383,89719.0,89718.0,0.001]
[1765766199139,1.44825811,89719.0,89718.0,0.001]
[1765766199433,0.65357,89707.0,89706.0,0.6337865]
[1765766199641,1.3766933,89707.0,89706.0,0.6337865]
[1765766200242,1.3766933,89707.0,89706.0,0.62264]
[1765766200541,1.3766933,89707.0,89706.0,0.6337866]
[1765766200730,1.3766933,89707.0,89706.0,0.6347866]
[1765766200929,1.3776933,89707.0,89706.0,0.6367866]
[1765766204243,1.3833099,89707.0,89706.0,0.6367866]
[1765766206235,1.3833099,89707.0,89706.0,0.62564]
[1765766206440,1.3833099,89707.0,89706.0,0.6367866]
[1765766206840,1.3833099,89707.0,89706.0,0.62564]
[1765766207142,1.3833099,89707.0,89706.0,0.003]
[1765766210747,1.3833099,89707.0,89706.0,0.62564]
[1765766213340,1.3833099,89707.0,89706.0,0.30872]
[1765766213539,1.3833099,89707.0,89706.0,0.003]
[1765766214448,1.3833099,89707.0,89706.0,0.62564]
[1765766214755,1.3833099,89707.0,89706.0,0.62464]
[1765766214934,1.3843099,89707.0,89706.0,0.62264]
[1765766215249,0.65357,89699.0,89698.0,0.62280719]
[1765766215452,1.3766933,89699.0,89698.0,0.62280719]
[1765766216246,1.3766933,89699.0,89698.0,0.63395479]
[1765766216647,1.3776933,89699.0,89698.0,0.63395479]
[1765766217147,1.7384933,89699.0,89698.0,0.00016719]
[1765766217349,1.7384933,89699.0,89698.0,0.31464479]
[1765766217541,1.7384933,89699.0,89698.0,0.61238719]
[1765766218462,1.7384933,89699.0,89698.0,0.00016719]